[Event "Titled Tuesday Blitz December 27 Late 2022"]
[White "Vetoshko, Volodymyr"]
[Black "Remolar Gallen, Jose"]
[WhiteFideId "14122480"]
[BlackFideId "2215187"]
[WhiteElo "2502"]
[BlackElo "2285"]
[Result "0-1"]
[Round "03"]
[TimeControl "180+2"]
[Date "2022.12.27"]
[WhiteClock "0:00:03"]
[BlackClock "0:00:54"]

1. e4 {[%clk 0:02:52]}  c5 {[%clk 0:02:59]} 2. Nf3 {[%clk 0:02:51]}  d6 {[%clk 0:02:59]} 3. d4 {[%clk 0:02:51]}  cxd4 {[%clk 0:03:00]} 4. Nxd4 {[%clk 0:02:52]}  Nf6 {[%clk 0:03:01]} 5. Nc3 {[%clk 0:02:52]}  a6 {[%clk 0:03:01]} 6. Be2 {[%clk 0:02:52]}  e5 {[%clk 0:03:01]} 7. Nb3 {[%clk 0:02:52]}  Be7 {[%clk 0:03:01]} 8. Bg5 {[%clk 0:02:52]}  Be6 {[%clk 0:02:57]} 9. Bxf6 {[%clk 0:02:52]}  Bxf6 {[%clk 0:02:56]} 10. Qd3 {[%clk 0:02:53]}  O-O {[%clk 0:02:45]} 11. O-O-O {[%clk 0:02:52]}  Nc6 {[%clk 0:02:44]} 12. Qxd6 {[%clk 0:02:49]}  Qc8 {[%clk 0:02:43]} 13. Nd5 {[%clk 0:02:37]}  Bg5+ {[%clk 0:02:36]} 14. Kb1 {[%clk 0:02:36]}  Rd8 {[%clk 0:02:32]} 15. Qc7 {[%clk 0:02:05]}  Bxd5 {[%clk 0:02:18]} 16. Qxc8 {[%clk 0:02:04]}  Raxc8 {[%clk 0:02:19]} 17. exd5 {[%clk 0:02:04]}  Nb4 {[%clk 0:02:11]} 18. c4 {[%clk 0:01:37]}  b5 {[%clk 0:02:11]} 19. cxb5 {[%clk 0:01:22]}  axb5 {[%clk 0:02:11]} 20. d6 {[%clk 0:01:01]}  Rc2 {[%clk 0:02:07]} 21. Bxb5 {[%clk 0:00:58]}  Rxf2 {[%clk 0:02:07]} 22. d7 {[%clk 0:00:43]}  e4 {[%clk 0:01:57]} 23. Nc5 {[%clk 0:00:21]}  Bf6 {[%clk 0:01:48]} 24. Na4 {[%clk 0:00:13]}  e3 {[%clk 0:01:30]} 25. a3 {[%clk 0:00:13]}  Nc2 {[%clk 0:01:28]} 26. Rc1 {[%clk 0:00:06]}  Nd4 {[%clk 0:01:19]} 27. Bd3 {[%clk 0:00:02]}  Rxd7 {[%clk 0:01:17]} 28. Rc8+ {[%clk 0:00:03]}  Rd8 {[%clk 0:01:18]} 29. Rxd8+ {[%clk 0:00:03]}  Bxd8 {[%clk 0:01:18]} 30. Nc3 {[%clk 0:00:03]}  f5 {[%clk 0:01:06]} 31. Re1 {[%clk 0:00:03]}  f4 {[%clk 0:00:57]} 32. g3 {[%clk 0:00:04]}  Nf3 {[%clk 0:00:54]} 33. Rf1 {[%clk 0:00:03]}  Nd2+ {[%clk 0:00:54]} 0-1


[Site "https://www.chess.com"]

[Event "Titled Tuesday Blitz December 27 Late 2022"]
[White "Vovk, Orest"]
[Black "Floresvillar Gonzalez, Luis Migu"]
[WhiteFideId "14113490"]
[BlackFideId "5100542"]
[WhiteElo "2315"]
[BlackElo "2043"]
[Result "1-0"]
[Round "03"]
[TimeControl "180+2"]
[Date "2022.12.27"]
[WhiteClock "0:00:14"]
[BlackClock "0:00:02"]

1. h4 {[%clk 0:02:43]}  d5 {[%clk 0:02:38]} 2. h5 {[%clk 0:02:34]}  e5 {[%clk 0:02:36]} 3. h6 {[%clk 0:02:28]}  Nxh6 {[%clk 0:02:35]} 4. d4 {[%clk 0:02:28]}  Ng4 {[%clk 0:02:26]} 5. f3 {[%clk 0:02:27]}  Nf6 {[%clk 0:02:19]} 6. dxe5 {[%clk 0:02:27]}  Nfd7 {[%clk 0:02:15]} 7. Qxd5 {[%clk 0:02:24]}  c6 {[%clk 0:02:10]} 8. Qd4 {[%clk 0:02:22]}  Bc5 {[%clk 0:02:08]} 9. Qg4 {[%clk 0:02:20]}  g6 {[%clk 0:01:50]} 10. e6 {[%clk 0:02:18]}  Nf6 {[%clk 0:01:41]} 11. exf7+ {[%clk 0:02:17]}  Kxf7 {[%clk 0:01:41]} 12. Qh4 {[%clk 0:02:13]}  Bf5 {[%clk 0:01:31]} 13. e4 {[%clk 0:02:07]}  Be6 {[%clk 0:01:20]} 14. Nc3 {[%clk 0:01:54]}  Nbd7 {[%clk 0:01:19]} 15. Bg5 {[%clk 0:01:54]}  h6 {[%clk 0:01:16]} 16. Bxf6 {[%clk 0:01:44]}  Qxf6 {[%clk 0:01:14]} 17. Qxf6+ {[%clk 0:01:44]}  Nxf6 {[%clk 0:01:14]} 18. O-O-O {[%clk 0:01:44]}  Rad8 {[%clk 0:01:10]} 19. Rxd8 {[%clk 0:01:42]}  Rxd8 {[%clk 0:01:09]} 20. Bd3 {[%clk 0:01:40]}  h5 {[%clk 0:01:08]} 21. Nge2 {[%clk 0:01:39]}  Be3+ {[%clk 0:01:06]} 22. Kb1 {[%clk 0:01:39]}  b5 {[%clk 0:01:05]} 23. b3 {[%clk 0:01:36]}  b4 {[%clk 0:01:04]} 24. Na4 {[%clk 0:01:31]}  a5 {[%clk 0:01:04]} 25. Nb2 {[%clk 0:01:18]}  c5 {[%clk 0:01:02]} 26. Nc4 {[%clk 0:01:15]}  Bxc4 {[%clk 0:00:59]} 27. Bxc4+ {[%clk 0:01:15]}  Kg7 {[%clk 0:00:59]} 28. Bd3 {[%clk 0:01:15]}  Nd7 {[%clk 0:00:56]} 29. f4 {[%clk 0:01:14]}  Nf6 {[%clk 0:00:55]} 30. g3 {[%clk 0:01:09]}  Ng4 {[%clk 0:00:52]} 31. Nc1 {[%clk 0:00:57]}  Nf2 {[%clk 0:00:50]} 32. Rf1 {[%clk 0:00:51]}  Bxc1 {[%clk 0:00:43]} 33. Rxf2 {[%clk 0:00:50]}  Be3 {[%clk 0:00:43]} 34. Re2 {[%clk 0:00:49]}  Bd4 {[%clk 0:00:42]} 35. e5 {[%clk 0:00:49]}  Bc3 {[%clk 0:00:35]} 36. e6 {[%clk 0:00:44]}  Re8 {[%clk 0:00:29]} 37. f5 {[%clk 0:00:35]}  gxf5 {[%clk 0:00:28]} 38. Bxf5 {[%clk 0:00:35]}  Re7 {[%clk 0:00:28]} 39. g4 {[%clk 0:00:33]}  hxg4 {[%clk 0:00:27]} 40. Bxg4 {[%clk 0:00:34]}  Bf6 {[%clk 0:00:23]} 41. a3 {[%clk 0:00:31]}  Kg6 {[%clk 0:00:22]} 42. Bf3 {[%clk 0:00:28]}  bxa3 {[%clk 0:00:21]} 43. Ka2 {[%clk 0:00:28]}  Bb2 {[%clk 0:00:20]} 44. Bc6 {[%clk 0:00:26]}  Kf5 {[%clk 0:00:18]} 45. Bd7 {[%clk 0:00:26]}  Kf6 {[%clk 0:00:14]} 46. Rh2 {[%clk 0:00:24]}  Ke5 {[%clk 0:00:13]} 47. Rh5+ {[%clk 0:00:20]}  Kd6 {[%clk 0:00:14]} 48. Rh4 {[%clk 0:00:20]}  Rg7 {[%clk 0:00:06]} 49. Rh1 {[%clk 0:00:18]}  Rg2 {[%clk 0:00:05]} 50. Kb1 {[%clk 0:00:17]}  Rg7 {[%clk 0:00:04]} 51. Rd1+ {[%clk 0:00:16]}  Ke7 {[%clk 0:00:03]} 52. Bc8 {[%clk 0:00:16]}  Kf6 {[%clk 0:00:03]} 53. Re1 {[%clk 0:00:14]}  Rc7 {[%clk 0:00:02]} 54. Rf1+ {[%clk 0:00:14]}  Ke7 {[%clk 0:00:02]} 55. Bd7 {[%clk 0:00:14]} 1-0


[Site "https://www.chess.com"]

[Event "Titled Tuesday Blitz December 27 Late 2022"]
[White "Wang, Alexander J"]
[Black "Urbina Perez, Juan Antonio"]
[WhiteFideId "30955270"]
[BlackFideId "2217368"]
[WhiteElo "1815"]
[BlackElo "2266"]
[Result "0-1"]
[Round "03"]
[TimeControl "180+2"]
[Date "2022.12.27"]
[WhiteClock "0:00:12"]
[BlackClock "0:00:10"]

1. e4 {[%clk 0:03:00]}  c5 {[%clk 0:02:57]} 2. Nf3 {[%clk 0:03:00]}  d6 {[%clk 0:02:57]} 3. d4 {[%clk 0:03:00]}  cxd4 {[%clk 0:02:58]} 4. Nxd4 {[%clk 0:03:01]}  Nf6 {[%clk 0:02:59]} 5. Nc3 {[%clk 0:03:01]}  Nc6 {[%clk 0:02:59]} 6. g3 {[%clk 0:03:01]}  g6 {[%clk 0:02:59]} 7. Bg2 {[%clk 0:03:01]}  Nxd4 {[%clk 0:02:59]} 8. Qxd4 {[%clk 0:03:00]}  Bg7 {[%clk 0:03:00]} 9. Qd1 {[%clk 0:03:01]}  O-O {[%clk 0:03:00]} 10. O-O {[%clk 0:03:01]}  Be6 {[%clk 0:02:58]} 11. h3 {[%clk 0:02:58]}  Rc8 {[%clk 0:02:57]} 12. Be3 {[%clk 0:02:57]}  a6 {[%clk 0:02:52]} 13. g4 {[%clk 0:02:57]}  Qc7 {[%clk 0:02:46]} 14. f4 {[%clk 0:02:51]}  b5 {[%clk 0:02:43]} 15. a3 {[%clk 0:02:49]}  Nd7 {[%clk 0:02:26]} 16. f5 {[%clk 0:02:33]}  Bc4 {[%clk 0:02:24]} 17. Re1 {[%clk 0:02:30]}  Bxc3 {[%clk 0:02:17]} 18. bxc3 {[%clk 0:02:29]}  Ne5 {[%clk 0:02:18]} 19. Qd2 {[%clk 0:02:15]}  Kh8 {[%clk 0:02:16]} 20. Bd4 {[%clk 0:02:14]}  f6 {[%clk 0:02:13]} 21. Bxe5 {[%clk 0:02:06]}  dxe5 {[%clk 0:02:10]} 22. fxg6 {[%clk 0:02:04]}  Kg7 {[%clk 0:02:02]} 23. gxh7 {[%clk 0:02:03]}  Rfd8 {[%clk 0:01:57]} 24. Qf2 {[%clk 0:02:00]}  Be6 {[%clk 0:01:54]} 25. Kh1 {[%clk 0:01:59]}  Qxc3 {[%clk 0:01:53]} 26. Qh4 {[%clk 0:01:51]}  Rh8 {[%clk 0:01:47]} 27. g5 {[%clk 0:01:46]}  Rxh7 {[%clk 0:01:45]} 28. gxf6+ {[%clk 0:01:46]}  exf6 {[%clk 0:01:44]} 29. Qf2 {[%clk 0:01:43]}  Bxh3 {[%clk 0:01:41]} 30. Kg1 {[%clk 0:01:23]}  Bxg2 {[%clk 0:01:33]} 31. Qxg2+ {[%clk 0:01:24]}  Kf7 {[%clk 0:01:31]} 32. Rad1 {[%clk 0:01:21]}  Qc5+ {[%clk 0:01:17]} 33. Kf1 {[%clk 0:01:16]}  Qc4+ {[%clk 0:01:16]} 34. Rd3 {[%clk 0:01:07]}  Rg8 {[%clk 0:01:10]} 35. Qf3 {[%clk 0:01:04]}  Ke7 {[%clk 0:00:56]} 36. Rd1 {[%clk 0:01:02]}  Rhg7 {[%clk 0:00:48]} 37. Qf2 {[%clk 0:00:58]}  Rd8 {[%clk 0:00:41]} 38. Qa7+ {[%clk 0:00:55]}  Kf8 {[%clk 0:00:39]} 39. Qb6 {[%clk 0:00:51]}  Rxd3 {[%clk 0:00:37]} 40. Rxd3 {[%clk 0:00:44]}  Kg8 {[%clk 0:00:33]} 41. Qd8+ {[%clk 0:00:39]}  Kh7 {[%clk 0:00:33]} 42. Qe8 {[%clk 0:00:37]}  Kh6 {[%clk 0:00:21]} 43. Qh8+ {[%clk 0:00:28]}  Kg6 {[%clk 0:00:19]} 44. Qe8+ {[%clk 0:00:28]}  Kg5 {[%clk 0:00:20]} 45. Qf8 {[%clk 0:00:22]}  Qf7 {[%clk 0:00:17]} 46. Qc5 {[%clk 0:00:19]}  Qh5 {[%clk 0:00:14]} 47. Rg3+ {[%clk 0:00:18]}  Kh6 {[%clk 0:00:15]} 48. Rxg7 {[%clk 0:00:12]}  Kxg7 {[%clk 0:00:16]} 49. Qe7+ {[%clk 0:00:13]}  Kg6 {[%clk 0:00:14]} 50. Qe8+ {[%clk 0:00:13]}  Kg5 {[%clk 0:00:15]} 51. Qg8+ {[%clk 0:00:12]}  Kf4 {[%clk 0:00:15]} 52. Qe6 {[%clk 0:00:12]}  Qf3+ {[%clk 0:00:15]} 53. Ke1 {[%clk 0:00:12]}  Qxe4+ {[%clk 0:00:15]} 54. Kd1 {[%clk 0:00:12]}  Qd4+ {[%clk 0:00:15]} 55. Kc1 {[%clk 0:00:13]}  f5 {[%clk 0:00:15]} 56. Qxa6 {[%clk 0:00:12]}  Qe3+ {[%clk 0:00:16]} 57. Kb1 {[%clk 0:00:12]}  Qe2 {[%clk 0:00:15]} 58. Kb2 {[%clk 0:00:13]}  e4 {[%clk 0:00:15]} 59. Qh6+ {[%clk 0:00:14]}  Ke5 {[%clk 0:00:14]} 60. Qg7+ {[%clk 0:00:14]}  Kd5 {[%clk 0:00:14]} 61. Qd7+ {[%clk 0:00:15]}  Ke5 {[%clk 0:00:14]} 62. Qe7+ {[%clk 0:00:15]}  Kf4 {[%clk 0:00:13]} 63. Qd6+ {[%clk 0:00:15]}  Kf3 {[%clk 0:00:13]} 64. Qf6 {[%clk 0:00:15]}  f4 {[%clk 0:00:13]} 65. Qh6 {[%clk 0:00:14]}  Qc4 {[%clk 0:00:13]} 66. Qh3+ {[%clk 0:00:14]}  Ke2 {[%clk 0:00:13]} 67. Qg2+ {[%clk 0:00:15]}  Ke3 {[%clk 0:00:14]} 68. Qh3+ {[%clk 0:00:15]}  f3 {[%clk 0:00:14]} 69. Qh6+ {[%clk 0:00:15]}  Ke2 {[%clk 0:00:14]} 70. Qh5 {[%clk 0:00:16]}  Ke3 {[%clk 0:00:12]} 71. Qh6+ {[%clk 0:00:16]}  Ke2 {[%clk 0:00:12]} 72. Qh5 {[%clk 0:00:17]}  Qd4+ {[%clk 0:00:13]} 73. Kb3 {[%clk 0:00:17]}  Kd2 {[%clk 0:00:12]} 74. Qh2+ {[%clk 0:00:16]}  f2 {[%clk 0:00:12]} 75. Ka2 {[%clk 0:00:12]}  Kxc2 {[%clk 0:00:09]} 76. Qg2 {[%clk 0:00:12]}  Qb2# {[%clk 0:00:10]} 0-1


[Site "https://www.chess.com"]

[Event "Titled Tuesday Blitz December 27 Late 2022"]
[White "Wieczorek, Oskar"]
[Black "Manukyan, Sargis A."]
[WhiteFideId "1133950"]
[BlackFideId "13303970"]
[WhiteElo "2512"]
[BlackElo "2158"]
[Result "1-0"]
[Round "03"]
[TimeControl "180+2"]
[Date "2022.12.27"]
[WhiteClock "0:01:01"]
[BlackClock "0:00:10"]

1. e4 {[%clk 0:03:00]}  e6 {[%clk 0:03:00]} 2. d4 {[%clk 0:03:01]}  d5 {[%clk 0:03:01]} 3. Nd2 {[%clk 0:03:01]}  Nc6 {[%clk 0:03:00]} 4. Ngf3 {[%clk 0:03:00]}  Nf6 {[%clk 0:03:00]} 5. e5 {[%clk 0:03:00]}  Nd7 {[%clk 0:03:00]} 6. Be2 {[%clk 0:03:01]}  f6 {[%clk 0:02:59]} 7. exf6 {[%clk 0:03:02]}  Qxf6 {[%clk 0:02:59]} 8. Nf1 {[%clk 0:03:03]}  Bd6 {[%clk 0:02:58]} 9. Ne3 {[%clk 0:03:03]}  O-O {[%clk 0:02:58]} 10. O-O {[%clk 0:03:04]}  Qg6 {[%clk 0:02:58]} 11. a3 {[%clk 0:02:58]}  Nf6 {[%clk 0:02:51]} 12. c4 {[%clk 0:02:57]}  Ne4 {[%clk 0:02:42]} 13. b4 {[%clk 0:02:40]}  Nc3 {[%clk 0:02:36]} 14. Qd2 {[%clk 0:02:40]}  Nxe2+ {[%clk 0:02:32]} 15. Qxe2 {[%clk 0:02:41]}  Rxf3 {[%clk 0:02:16]} 16. Qxf3 {[%clk 0:02:40]}  Nxd4 {[%clk 0:02:16]} 17. Qd1 {[%clk 0:02:38]}  Be5 {[%clk 0:01:48]} 18. Bb2 {[%clk 0:02:21]}  Nf3+ {[%clk 0:01:01]} 19. Qxf3 {[%clk 0:02:21]}  Bxb2 {[%clk 0:01:02]} 20. Rab1 {[%clk 0:02:19]}  Bd4 {[%clk 0:00:44]} 21. cxd5 {[%clk 0:02:17]}  e5 {[%clk 0:00:44]} 22. Rbc1 {[%clk 0:02:10]}  Bb6 {[%clk 0:00:35]} 23. Nc4 {[%clk 0:02:03]}  Bd4 {[%clk 0:00:34]} 24. Ne3 {[%clk 0:01:58]}  Bb6 {[%clk 0:00:32]} 25. d6 {[%clk 0:01:58]}  cxd6 {[%clk 0:00:26]} 26. Rfd1 {[%clk 0:01:42]}  Bd4 {[%clk 0:00:17]} 27. Qd5+ {[%clk 0:01:12]}  Kh8 {[%clk 0:00:11]} 28. Rc7 {[%clk 0:01:03]}  Be6 {[%clk 0:00:10]} 29. Qxd6 {[%clk 0:01:01]}  Rf8 {[%clk 0:00:10]} 30. Qxf8+ {[%clk 0:01:01]} 1-0


[Site "https://www.chess.com"]

[Event "Titled Tuesday Blitz December 27 Late 2022"]
[White "Wu, Brandon"]
[Black "Guevara Sanchez, Erick Marvin"]
[WhiteFideId "30909228"]
[BlackFideId "6700136"]
[WhiteElo "2123"]
[BlackElo "2073"]
[Result "1-0"]
[Round "03"]
[TimeControl "180+2"]
[Date "2022.12.27"]
[WhiteClock "0:00:15"]
[BlackClock "0:00:02"]

1. Nf3 {[%clk 0:03:00]}  e6 {[%clk 0:02:56]} 2. c4 {[%clk 0:03:00]}  Nf6 {[%clk 0:02:55]} 3. g3 {[%clk 0:03:00]}  d5 {[%clk 0:02:54]} 4. Bg2 {[%clk 0:03:00]}  c6 {[%clk 0:02:54]} 5. O-O {[%clk 0:03:00]}  dxc4 {[%clk 0:02:55]} 6. Qc2 {[%clk 0:02:56]}  b5 {[%clk 0:02:47]} 7. a4 {[%clk 0:02:51]}  Bb7 {[%clk 0:02:38]} 8. b3 {[%clk 0:02:35]}  cxb3 {[%clk 0:02:37]} 9. Qxb3 {[%clk 0:02:36]}  Qd7 {[%clk 0:02:24]} 10. Ne5 {[%clk 0:02:04]}  Qc7 {[%clk 0:02:22]} 11. Bb2 {[%clk 0:01:57]}  Bd6 {[%clk 0:02:16]} 12. d4 {[%clk 0:01:48]}  a6 {[%clk 0:02:04]} 13. Rc1 {[%clk 0:01:40]}  Bxe5 {[%clk 0:02:04]} 14. dxe5 {[%clk 0:01:40]}  Nd5 {[%clk 0:02:01]} 15. Bxd5 {[%clk 0:01:20]}  exd5 {[%clk 0:02:02]} 16. Qxd5 {[%clk 0:01:12]}  O-O {[%clk 0:02:00]} 17. Ba3 {[%clk 0:00:40]}  Rd8 {[%clk 0:01:53]} 18. Bd6 {[%clk 0:00:40]}  Qb6 {[%clk 0:01:35]} 19. Qb3 {[%clk 0:00:32]}  Nd7 {[%clk 0:01:32]} 20. a5 {[%clk 0:00:32]}  Qa7 {[%clk 0:01:30]} 21. Nc3 {[%clk 0:00:32]}  c5 {[%clk 0:01:25]} 22. Nd5 {[%clk 0:00:30]}  c4 {[%clk 0:01:23]} 23. Ne7+ {[%clk 0:00:30]}  Kh8 {[%clk 0:01:21]} 24. Qc2 {[%clk 0:00:30]}  Nc5 {[%clk 0:00:40]} 25. Qf5 {[%clk 0:00:27]}  Rf8 {[%clk 0:00:39]} 26. Rd1 {[%clk 0:00:19]}  Be4 {[%clk 0:00:39]} 27. Qh5 {[%clk 0:00:19]}  Nb3 {[%clk 0:00:33]} 28. Ra3 {[%clk 0:00:18]}  Rae8 {[%clk 0:00:20]} 29. Qh4 {[%clk 0:00:18]}  Bc2 {[%clk 0:00:15]} 30. Rd5 {[%clk 0:00:18]}  Qb7 {[%clk 0:00:11]} 31. e3 {[%clk 0:00:17]}  b4 {[%clk 0:00:09]} 32. e6 {[%clk 0:00:15]}  bxa3 {[%clk 0:00:07]} 33. exf7 {[%clk 0:00:15]}  Rxf7 {[%clk 0:00:06]} 34. Ng6+ {[%clk 0:00:15]}  Kg8 {[%clk 0:00:05]} 35. Ne7+ {[%clk 0:00:15]}  Rfxe7 {[%clk 0:00:03]} 36. Qxc4 {[%clk 0:00:15]}  Nd2 {[%clk 0:00:02]} 37. Rxd2+ {[%clk 0:00:15]} 1-0


[Site "https://www.chess.com"]

[Event "Titled Tuesday Blitz December 27 Late 2022"]
[White "Yeritsyan, Hayk"]
[Black "Adla, Diego"]
[WhiteFideId "13307320"]
[BlackFideId "100072"]
[WhiteElo "2241"]
[BlackElo "2383"]
[Result "0-1"]
[Round "03"]
[TimeControl "180+2"]
[Date "2022.12.27"]
[WhiteClock "0:00:56"]
[BlackClock "0:01:15"]

1. d4 {[%clk 0:03:00]}  Nf6 {[%clk 0:02:59]} 2. Nf3 {[%clk 0:02:59]}  d5 {[%clk 0:02:58]} 3. e3 {[%clk 0:02:58]}  c5 {[%clk 0:02:54]} 4. Bd3 {[%clk 0:02:57]}  g6 {[%clk 0:02:51]} 5. c3 {[%clk 0:02:56]}  Qc7 {[%clk 0:02:50]} 6. Nbd2 {[%clk 0:02:55]}  Bg7 {[%clk 0:02:47]} 7. O-O {[%clk 0:02:54]}  O-O {[%clk 0:02:46]} 8. Qe2 {[%clk 0:02:49]}  Rd8 {[%clk 0:02:43]} 9. Re1 {[%clk 0:02:49]}  b6 {[%clk 0:02:39]} 10. dxc5 {[%clk 0:02:46]}  bxc5 {[%clk 0:02:37]} 11. e4 {[%clk 0:02:47]}  Nc6 {[%clk 0:02:31]} 12. e5 {[%clk 0:02:43]}  Ng4 {[%clk 0:02:29]} 13. e6 {[%clk 0:02:40]}  Bxe6 {[%clk 0:02:25]} 14. h3 {[%clk 0:02:36]}  Nge5 {[%clk 0:02:19]} 15. Nxe5 {[%clk 0:02:36]}  Nxe5 {[%clk 0:02:18]} 16. Bc2 {[%clk 0:02:35]}  d4 {[%clk 0:02:16]} 17. cxd4 {[%clk 0:02:34]}  cxd4 {[%clk 0:02:15]} 18. Bd3 {[%clk 0:02:27]}  Nxd3 {[%clk 0:02:14]} 19. Qxd3 {[%clk 0:02:28]}  Bf5 {[%clk 0:02:13]} 20. Qf3 {[%clk 0:02:28]}  e5 {[%clk 0:02:08]} 21. Ne4 {[%clk 0:02:27]}  Bxe4 {[%clk 0:02:08]} 22. Qxe4 {[%clk 0:02:27]}  f5 {[%clk 0:02:08]} 23. Qd3 {[%clk 0:02:17]}  e4 {[%clk 0:02:07]} 24. Qb3+ {[%clk 0:02:16]}  Qf7 {[%clk 0:02:08]} 25. Qa4 {[%clk 0:02:09]}  d3 {[%clk 0:02:07]} 26. Bg5 {[%clk 0:02:06]}  Bxb2 {[%clk 0:01:59]} 27. Rab1 {[%clk 0:01:55]}  Bf6 {[%clk 0:01:59]} 28. Bf4 {[%clk 0:01:52]}  Rac8 {[%clk 0:01:54]} 29. Qa6 {[%clk 0:01:50]}  g5 {[%clk 0:01:38]} 30. Rb7 {[%clk 0:01:48]}  Qg6 {[%clk 0:01:25]} 31. Bc7 {[%clk 0:01:38]}  Re8 {[%clk 0:01:23]} 32. Qxa7 {[%clk 0:01:37]}  f4 {[%clk 0:01:20]} 33. Rb6 {[%clk 0:01:27]}  d2 {[%clk 0:01:18]} 34. Rd1 {[%clk 0:01:26]}  e3 {[%clk 0:01:18]} 35. fxe3 {[%clk 0:01:23]}  fxe3 {[%clk 0:01:18]} 36. Qa6 {[%clk 0:01:23]}  e2 {[%clk 0:01:17]} 37. Qc4+ {[%clk 0:01:20]}  Qf7 {[%clk 0:01:16]} 38. Qxe2 {[%clk 0:00:56]}  Rxe2 {[%clk 0:01:15]} 0-1


[Site "https://www.chess.com"]

[Event "Titled Tuesday Blitz December 27 Late 2022"]
[White "Yurasova, Daria"]
[Black "Liu, Kelsey"]
[WhiteFideId "34146919"]
[BlackFideId "30944481"]
[WhiteElo "2095"]
[BlackElo "2065"]
[Result "1-0"]
[Round "03"]
[TimeControl "180+2"]
[Date "2022.12.27"]
[WhiteClock "0:00:56"]
[BlackClock "0:00:09"]

1. d4 {[%clk 0:03:00]}  Nf6 {[%clk 0:02:58]} 2. Bg5 {[%clk 0:03:00]}  c5 {[%clk 0:02:53]} 3. Bxf6 {[%clk 0:02:59]}  gxf6 {[%clk 0:02:51]} 4. e3 {[%clk 0:02:59]}  Nc6 {[%clk 0:02:44]} 5. dxc5 {[%clk 0:02:58]}  Qa5+ {[%clk 0:02:34]} 6. Nd2 {[%clk 0:02:40]}  Bg7 {[%clk 0:02:20]} 7. Nf3 {[%clk 0:02:38]}  Qxc5 {[%clk 0:02:15]} 8. Bd3 {[%clk 0:02:37]}  d5 {[%clk 0:02:06]} 9. O-O {[%clk 0:02:38]}  Bg4 {[%clk 0:02:05]} 10. c3 {[%clk 0:02:37]}  e5 {[%clk 0:02:03]} 11. Be2 {[%clk 0:02:35]}  O-O-O {[%clk 0:01:55]} 12. b4 {[%clk 0:02:34]}  Qd6 {[%clk 0:01:46]} 13. b5 {[%clk 0:02:33]}  Ne7 {[%clk 0:01:44]} 14. Rc1 {[%clk 0:02:18]}  Kb8 {[%clk 0:01:43]} 15. c4 {[%clk 0:02:15]}  f5 {[%clk 0:01:23]} 16. cxd5 {[%clk 0:02:05]}  Nxd5 {[%clk 0:01:21]} 17. Qb3 {[%clk 0:01:59]}  e4 {[%clk 0:01:04]} 18. Nc4 {[%clk 0:01:51]}  Qh6 {[%clk 0:00:45]} 19. Nd4 {[%clk 0:01:50]}  Bxd4 {[%clk 0:00:43]} 20. Bxg4 {[%clk 0:01:48]}  Rhg8 {[%clk 0:00:26]} 21. exd4 {[%clk 0:01:11]}  Rxg4 {[%clk 0:00:27]} 22. Ne3 {[%clk 0:01:07]}  Nxe3 {[%clk 0:00:21]} 23. Qxe3 {[%clk 0:01:07]}  f4 {[%clk 0:00:20]} 24. Qxe4 {[%clk 0:01:06]}  Rdg8 {[%clk 0:00:20]} 25. g3 {[%clk 0:00:58]}  fxg3 {[%clk 0:00:19]} 26. Qe5+ {[%clk 0:00:59]}  Ka8 {[%clk 0:00:19]} 27. fxg3 {[%clk 0:01:00]}  R4g5 {[%clk 0:00:13]} 28. Qc7 {[%clk 0:00:57]}  Rh5 {[%clk 0:00:09]} 29. Qc8+ {[%clk 0:00:56]} 1-0


[Site "https://www.chess.com"]

[Event "Titled Tuesday Blitz December 27 Late 2022"]
[White "reevecanada"]
[Black "Joubert, Dantelle"]
[BlackFideId "14310813"]
[WhiteElo "2430"]
[BlackElo "1566"]
[Result "1-0"]
[Round "03"]
[TimeControl "180+2"]
[Date "2022.12.27"]
[WhiteClock "0:02:08"]
[BlackClock "0:00:03"]

1. Nf3 {[%clk 0:03:00]}  d5 {[%clk 0:02:58]} 2. e3 {[%clk 0:03:01]}  Nf6 {[%clk 0:02:57]} 3. d4 {[%clk 0:03:02]}  Bg4 {[%clk 0:02:46]} 4. Be2 {[%clk 0:03:03]}  c6 {[%clk 0:02:45]} 5. O-O {[%clk 0:03:02]}  e6 {[%clk 0:02:44]} 6. h3 {[%clk 0:03:01]}  Bh5 {[%clk 0:02:44]} 7. Nbd2 {[%clk 0:03:01]}  Nbd7 {[%clk 0:02:43]} 8. c4 {[%clk 0:03:00]}  Bd6 {[%clk 0:02:40]} 9. Qc2 {[%clk 0:02:58]}  O-O {[%clk 0:02:40]} 10. e4 {[%clk 0:02:57]}  dxe4 {[%clk 0:02:31]} 11. Nxe4 {[%clk 0:02:57]}  Nxe4 {[%clk 0:02:30]} 12. Qxe4 {[%clk 0:02:58]}  Nf6 {[%clk 0:02:30]} 13. Qe3 {[%clk 0:02:58]}  Qc7 {[%clk 0:01:44]} 14. b3 {[%clk 0:02:55]}  Rad8 {[%clk 0:01:35]} 15. Bb2 {[%clk 0:02:50]}  Bf4 {[%clk 0:01:28]} 16. Qd3 {[%clk 0:02:49]}  Bg6 {[%clk 0:01:27]} 17. Qd1 {[%clk 0:02:44]}  h6 {[%clk 0:01:20]} 18. Qe1 {[%clk 0:02:42]}  Rfe8 {[%clk 0:01:14]} 19. g3 {[%clk 0:02:40]}  Bd6 {[%clk 0:01:05]} 20. Ne5 {[%clk 0:02:39]}  Bf5 {[%clk 0:01:01]} 21. Kg2 {[%clk 0:02:37]}  a5 {[%clk 0:00:54]} 22. Bc3 {[%clk 0:02:35]}  b6 {[%clk 0:00:51]} 23. Bf3 {[%clk 0:02:35]}  c5 {[%clk 0:00:39]} 24. dxc5 {[%clk 0:02:33]}  Bxc5 {[%clk 0:00:37]} 25. Rd1 {[%clk 0:02:32]}  Bc2 {[%clk 0:00:32]} 26. Rxd8 {[%clk 0:02:30]}  Rxd8 {[%clk 0:00:33]} 27. Qe2 {[%clk 0:02:30]}  Bf5 {[%clk 0:00:25]} 28. Rd1 {[%clk 0:02:23]}  Rxd1 {[%clk 0:00:22]} 29. Qxd1 {[%clk 0:02:24]}  Be4 {[%clk 0:00:20]} 30. Qe2 {[%clk 0:02:19]}  Bxf3+ {[%clk 0:00:19]} 31. Qxf3 {[%clk 0:02:20]}  Bd6 {[%clk 0:00:18]} 32. Nd3 {[%clk 0:02:18]}  Be7 {[%clk 0:00:17]} 33. h4 {[%clk 0:02:17]}  Nd7 {[%clk 0:00:16]} 34. Qg4 {[%clk 0:02:17]}  Bf6 {[%clk 0:00:16]} 35. Bd2 {[%clk 0:02:16]}  Ne5 {[%clk 0:00:15]} 36. Nxe5 {[%clk 0:02:15]}  Qxe5 {[%clk 0:00:16]} 37. Bxh6 {[%clk 0:02:15]}  Qb2 {[%clk 0:00:10]} 38. h5 {[%clk 0:02:13]}  Kh7 {[%clk 0:00:09]} 39. Be3 {[%clk 0:02:10]}  Qxa2 {[%clk 0:00:09]} 40. Qe4+ {[%clk 0:02:11]}  Kg8 {[%clk 0:00:07]} 41. Qd3 {[%clk 0:02:09]}  Qb2 {[%clk 0:00:06]} 42. Bxb6 {[%clk 0:02:08]}  Qc3 {[%clk 0:00:04]} 43. Qxc3 {[%clk 0:02:07]}  Bxc3 {[%clk 0:00:03]} 44. c5 {[%clk 0:02:07]}  Kf8 {[%clk 0:00:03]} 45. c6 {[%clk 0:02:07]}  Ke7 {[%clk 0:00:03]} 46. Bc5+ {[%clk 0:02:08]}  Kd8 {[%clk 0:00:04]} 47. Bd6 {[%clk 0:02:08]}  Kc8 {[%clk 0:00:04]} 48. f4 {[%clk 0:02:08]}  Bb4 {[%clk 0:00:03]} 49. Bxb4 {[%clk 0:02:05]}  axb4 {[%clk 0:00:03]} 50. g4 {[%clk 0:02:06]}  Kc7 {[%clk 0:00:04]} 51. g5 {[%clk 0:02:07]}  Kxc6 {[%clk 0:00:04]} 52. h6 {[%clk 0:02:08]}  gxh6 {[%clk 0:00:03]} 53. gxh6 {[%clk 0:02:08]} 1-0


[Site "https://www.chess.com"]